bitfinex-derivatives/quotes_BNBF0:USTF0_20250211
["timestamp","ask_amount","ask_price","bid_price","bid_amount"]
[1739300537754,6.11261725,632.37,631.22,0.29078167]
[1739300537959,6.11261725,632.36,631.21,0.29078167]
[1739300538262,3.98236116,632.35,631.22,0.29078167]
[1739300538460,3.98236116,632.35,631.23,0.29078167]
[1739300538756,3.98236116,632.35,631.24,0.29078167]
[1739300538960,2.13025609,632.36,631.21,0.29078167]
[1739300539161,2.80221793,632.37,631.22,0.29078167]
[1739300539479,0.31627553,632.36,631.23,0.29078167]
[1739300539662,0.31627553,632.36,631.24,0.29078167]
[1739300539960,0.31627553,632.36,631.25,0.29078167]
[1739300540162,0.31627553,632.36,631.21,0.29078167]
[1739300540462,0.31627553,632.36,631.22,0.29078167]
[1739300540655,0.31627553,632.36,631.2,0.31685678]
[1739300540656,0.31627553,632.36,631.21,0.29078167]
[1739300540860,0.31627553,632.36,631.22,0.29078167]
[1739300541055,0.31627553,632.36,631.21,0.29078167]
[1739300541259,0.31627553,632.36,631.22,0.29078167]
[1739300541456,0.31627553,632.36,631.21,0.29078167]
[1739300541655,0.31627553,632.36,631.22,0.29078167]
[1739300541860,0.31627553,632.36,631.21,0.29078167]
[1739300542160,0.31627553,632.36,631.22,0.29078167]
[1739300542361,0.31627553,632.36,631.21,0.29078167]
[1739300542557,0.31627553,632.36,631.22,0.29078167]
[1739300542762,6.11261725,632.35,631.23,0.29078167]
[1739300542958,3.98236116,632.34,631.24,0.29078167]
[1739300543161,3.98236116,632.33,631.2,0.31685678]
[1739300543362,3.98236116,632.32,631.21,0.29072997]
[1739300543558,6.11261725,632.33,631.22,0.29072997]
[1739300543757,6.11261725,632.32,631.23,0.29072997]
[1739300543962,2.13025609,632.31,631.24,0.29072997]
[1739300544162,3.98236116,632.3,631.25,0.29072997]
[1739300544365,6.11261725,632.33,631.26,0.29072997]
[1739300544562,3.98236116,632.32,631.27,0.29072997]
[1739300544761,3.98236116,632.31,631.28,0.2907216]
[1739300544960,3.98236116,632.32,631.22,0.2907216]
[1739300545163,2.80221793,632.34,631.23,0.2907216]
[1739300545359,2.80221793,632.34,631.21,0.89988302]
[1739300545564,2.80221793,632.34,631.22,0.89988302]
[1739300545764,2.80221793,632.34,631.23,0.89988302]
[1739300545969,0.31627553,632.36,631.24,0.2907216]
[1739300546263,0.31627553,632.36,631.2,0.31685678]
[1739300546264,0.31627553,632.36,631.25,0.2907216]
[1739300546463,0.31627553,632.36,631.21,0.2907216]
[1739300546669,0.31627553,632.36,631.2,0.31685678]
[1739300546870,0.31627553,632.36,631.21,0.29077596]
[1739300552472,0.31627553,632.36,631.2,0.31685678]
[1739300552473,0.31627553,632.36,631.22,0.29079435]
[1739300552672,6.41387759,632.35,631.21,0.29079435]
[1739300552871,6.73016313,632.34,631.22,0.29079435]
[1739300553171,6.45386694,632.33,631.23,0.29079435]
[1739300553372,6.1375764,632.32,631.24,0.29079435]
[1739300553572,6.45387694,632.31,630.88,0.29079435]
[1739300553770,6.45387694,632.31,630.89,0.29079435]
[1739300553975,6.45387694,632.31,630.9,0.29079435]
[1739300554168,3.99869892,632.3,630.87,0.9006342]
[1739300554367,0.31631555,632.28,630.88,0.29079435]
[1739300554568,0.31631555,632.28,630.87,0.9006342]
[1739300554770,0.31631555,632.28,630.88,0.29079435]
[1739300554967,0.31631555,632.28,630.87,0.90109019]
[1739300555269,0.31631555,632.28,630.88,0.29079435]
[1739300555475,0.31631555,632.28,630.87,0.90109019]
[1739300555671,0.31631555,632.28,630.62,1.65320011]
[1739300555672,0.31631555,632.28,630.8,1.18596082]
[1739300555870,0.31631555,632.28,630.81,0.90107012]
[1739300556477,0.27636174,632.27,630.81,0.90107012]
[1739300556678,0.31633056,632.25,630.81,0.90107012]
[1739300556975,0.27636174,632.24,630.81,0.90107012]
[1739300557374,0.31634557,632.22,630.81,0.90107012]
[1739300557570,0.27636174,632.21,630.81,0.29088201]
[1739300557770,0.31636058,632.19,630.81,0.29088201]
[1739300558378,0.27640575,632.18,630.81,0.29088201]
[1739300558576,0.3163756,632.16,630.81,0.29088201]
[1739300558983,0.3163756,632.16,630.69,1.18596082]
[1739300558984,0.3163756,632.16,630.82,0.29088201]
[1739300559280,0.3163756,632.16,630.83,0.29088201]
[1739300559482,0.3163756,632.16,630.7,0.90153095]
[1739300559682,0.27644963,632.15,630.71,0.29088201]
[1739300559877,0.27644963,632.15,630.72,0.29088201]
[1739300560181,0.31639061,632.13,630.73,0.29088201]
[1739300560382,0.27644963,632.12,630.7,0.29088201]
[1739300560579,0.31640563,632.1,630.71,0.29088201]
[1739300560780,0.27644963,632.09,630.7,0.29088201]
[1739300560980,0.31642064,632.07,630.43,0.90187983]
[1739300561182,0.2763469,632.06,630.44,1.21921434]
[1739300561484,0.31642064,632.07,630.42,1.6535405]
[1739300561485,0.31642064,632.07,630.45,1.21920931]
[1739300561684,0.2762604,632.06,630.46,1.21920428]
[1739300561884,0.2762604,632.06,630.47,1.21919924]
[1739300562179,0.2762604,632.06,630.48,1.21919421]
[1739300562382,0.31643566,632.04,630.49,0.29097765]
[1739300562583,0.31643566,632.04,630.48,0.31721862]
[1739300562778,0.31643566,632.04,630.49,0.29097765]
[1739300563381,0.31643566,632.04,630.5,0.29097765]
[1739300563582,0.31643566,632.04,630.51,0.31720353]
[1739300563884,0.31643566,632.04,630.52,0.29097765]
[1739300564283,0.31643566,632.04,630.53,0.29097765]
[1739300564478,0.31643566,632.04,630.54,0.31718844]
[1739300564679,0.31643566,632.04,630.55,0.29097765]
[1739300564989,0.31643566,632.04,630.56,0.31717838]
[1739300565190,0.31643566,632.04,630.57,0.29097765]
[1739300565383,0.31643566,632.04,630.58,0.31716832]
[1739300565584,0.31643566,632.04,630.59,0.29097765]
[1739300566083,0.31643566,632.04,630.6,0.31715826]
[1739300566283,0.31643566,632.04,630.61,0.29097765]
[1739300566481,0.31643566,632.04,630.62,0.3171482]
[1739300566688,0.31643566,632.04,630.63,0.29097765]
[1739300566888,0.31643566,632.04,630.64,0.31713814]
[1739300567183,0.31643566,632.04,630.65,0.29097765]
[1739300572086,0.31643566,632.04,630.66,0.29095194]
[1739300572493,0.31643566,632.04,630.67,0.29095194]
[1739300572693,0.31643566,632.04,630.68,0.29095194]
[1739300572895,0.31643566,632.04,630.65,0.29095194]
[1739300573094,0.31643566,632.04,630.69,0.29095194]
[1739300573293,0.31643566,632.04,630.64,0.31713814]
[1739300573294,0.31643566,632.04,630.7,0.29095194]
[1739300573590,0.31643566,632.04,630.71,0.29095194]
[1739300573795,0.31643566,632.04,630.65,0.29095194]
[1739300574096,0.31643566,632.04,630.66,0.29095194]
[1739300574294,0.31643566,632.04,630.64,0.31713814]
[1739300574295,0.31643566,632.04,630.67,0.29095194]
[1739300574495,0.31643566,632.04,630.65,0.29095194]
[1739300574694,0.31643566,632.04,630.66,0.29095194]
[1739300574900,0.31643566,632.04,630.65,0.29095194]
[1739300575698,0.31643566,632.04,630.66,0.29096592]
[1739300575897,0.31643566,632.04,630.67,0.29096592]
[1739300576098,0.31643566,632.04,630.65,0.29096592]
[1739300576296,0.31643566,632.04,630.66,0.29096592]
[1739300576501,0.31643566,632.04,630.65,0.29096592]
[1739300577401,0.31643566,632.04,630.66,0.31712808]
[1739300577593,0.31643566,632.04,630.67,0.29093643]
[1739300579301,0.31643566,632.04,630.66,0.31712808]
[1739300579603,0.31643566,632.04,630.67,0.29097395]
[1739300580402,0.27595315,632.03,630.67,0.29097395]
[1739300580603,0.31645068,632.01,630.67,0.29097395]
[1739300582504,0.31645068,632.01,630.68,0.29100212]
[1739300582807,0.31645068,632.01,630.69,0.29100212]
[1739300583010,0.31645068,632.01,630.67,0.29100212]
[1739300583206,0.31645068,632.01,630.68,0.29100212]
[1739300583401,0.31645068,632.01,630.67,0.29100212]
[1739300583598,0.31645068,632.01,630.69,0.29100212]
[1739300583799,0.31645068,632.01,630.7,0.29100212]
[1739300583999,0.31645068,632.01,630.67,0.29100212]
[1739300584999,0.31645068,632.01,630.68,0.29093576]
[1739300585202,0.31645068,632.01,630.67,0.29093576]
[1739300585404,0.31645068,632.01,630.68,0.29093576]
[1739300585705,0.31645068,632.01,630.69,0.29093576]
[1739300585907,0.31645068,632.01,630.7,0.29093576]
[1739300586101,0.31645068,632.01,630.71,0.29093576]
[1739300586301,0.31645068,632.01,630.67,0.29093576]
[1739300586503,0.31645068,632.01,630.72,0.29093576]
[1739300586699,0.31645068,632.01,630.73,0.29093576]
[1739300586900,0.31645068,632.01,630.67,0.29093576]
[1739300588005,0.31645068,632.01,630.68,0.29093576]
[1739300588202,0.31645068,632.01,630.69,0.29093576]
[1739300588409,0.31645068,632.01,630.7,0.29093576]
[1739300588710,0.31645068,632.01,630.71,0.29093576]
[1739300589007,0.31645068,632.01,630.72,0.29093576]
[1739300589202,0.31645068,632.01,630.66,0.31712808]
[1739300589203,0.31645068,632.01,630.69,0.29093576]
[1739300589407,0.31645068,632.01,630.7,0.29093576]
[1739300589610,0.31645068,632.01,630.71,0.29093576]
[1739300589909,0.27596145,632.0,630.67,0.90184874]
[1739300590108,0.27596145,632.0,630.68,0.29093576]
[1739300590309,0.27596145,632.0,630.67,0.90184874]
[1739300590609,0.31646571,631.98,630.68,0.29093576]
[1739300590911,0.31646571,631.98,630.69,0.29093576]
[1739300591107,0.31646571,631.98,630.67,0.29093576]
[1739300591307,0.27593286,631.97,630.68,0.29093576]
[1739300591502,0.31648073,631.95,630.66,1.5030889]
[1739300592103,0.31648073,631.95,630.66,0.31712808]
[1739300592503,0.31648073,631.95,630.67,0.29101036]
[1739300592702,0.27594572,631.94,630.67,0.29101036]
[1739300592906,0.31649575,631.92,630.68,0.29101036]
[1739300593102,0.27594572,631.91,630.69,0.29101036]
[1739300593307,0.31651078,631.89,630.58,0.29101036]
[1739300593509,0.31651078,631.89,630.59,0.29101036]
[1739300593710,0.31651078,631.89,630.6,0.29104899]
[1739300594009,0.31651078,631.89,630.61,0.29104899]
[1739300594208,0.31651078,631.89,630.58,0.29104899]
[1739300594404,0.31651078,631.89,630.59,0.29104899]
[1739300594608,0.31651078,631.89,630.6,0.29104899]
[1739300594910,0.31651078,631.89,630.61,0.29104899]
[1739300595104,0.31651078,631.89,630.5,0.90215305]
[1739300595310,0.31651078,631.89,630.51,0.90215305]
[1739300595509,0.31651078,631.89,630.52,0.90210524]
[1739300595710,0.31651078,631.89,630.53,0.2910206]
[1739300595910,0.31651078,631.89,630.54,0.2910206]
[1739300596206,0.31651078,631.89,630.55,0.2910206]
[1739300596404,0.31651078,631.89,630.56,0.2910206]
[1739300596607,0.31651078,631.89,630.57,0.2910206]
[1739300596807,0.31651078,631.89,630.58,0.2910206]
[1739300597004,0.31651078,631.89,630.59,0.2910206]
[1739300597209,0.31651078,631.89,630.6,0.2910206]
[1739300597512,0.31651078,631.89,630.61,0.2910206]
[1739300597708,0.31651078,631.89,630.62,0.2910206]
[1739300598006,0.31651078,631.89,630.63,1.47698142]
[1739300598210,0.31651078,631.89,630.64,0.90210524]
[1739300600612,0.31651078,631.89,630.61,0.90210524]
[1739300600806,0.31651078,631.89,630.62,0.90210524]
[1739300601009,0.31651078,631.89,630.61,0.2910206]
[1739300601207,0.31651078,631.89,630.62,0.2910206]
[1739300601411,0.31651078,631.89,630.61,0.2910206]
[1739300601613,0.31651078,631.89,630.6,1.18596082]
[1739300601913,0.31651078,631.89,630.54,0.31718844]
[1739300603908,3.99869892,631.88,630.54,0.31718844]
[1739300604108,0.31652581,631.86,630.54,0.31718844]
[1739300604413,4.31522473,631.86,630.54,0.31718844]
[1739300604608,0.31652581,631.86,630.54,0.31718844]
[1739300606110,3.99869892,631.85,630.54,0.31718844]
[1739300606311,0.31654084,631.83,630.54,0.31718844]
[1739300606510,3.99869892,631.82,630.54,0.31718844]
[1739300606814,4.31524978,631.81,630.54,0.31718844]
[1739300607016,0.31655587,631.8,630.54,0.31718844]
[1739300610217,2.80221793,631.87,630.54,0.31718844]
[1739300610612,1.41647486,632.07,630.54,0.31718844]
[1739300610813,1.41647486,632.13,630.54,0.31718844]
[1739300613718,1.41647486,633.82,630.91,1.18596082]
[1739300613916,0.31561671,633.68,631.01,0.31695218]
[1739300620323,3.97679393,633.67,631.01,0.31695218]
[1739300620523,0.31561671,633.68,631.01,0.31695218]
[1739300643342,0.31561671,633.68,631.09,1.18596082]
[1739300643544,0.31561671,633.68,631.19,0.3168618]
[1739300645245,0.31561671,633.68,631.39,1.18596082]
[1739300645440,0.31561671,633.68,631.41,0.31675139]
[1739300647547,1.41647486,633.53,631.78,1.18596082]
[1739300648848,0.3157014,633.51,631.78,1.18596082]
[1739300650050,1.41647486,633.47,631.88,1.18596082]
[1739300650251,0.31573131,633.45,631.88,1.18596082]
[1739300652757,1.41647486,633.41,631.87,1.18596082]
[1739300653054,0.31576122,633.39,631.89,0.2904815]
[1739300653453,0.31576122,633.39,631.88,0.2904815]
[1739300653653,0.27596401,633.38,631.88,0.2904815]
[1739300653853,0.31577617,633.36,631.88,0.2904815]
[1739300654051,0.27596401,633.35,631.88,0.2904815]
[1739300654256,0.31579113,633.33,631.89,0.29048309]
[1739300654554,0.27596559,633.32,631.9,0.29048309]
[1739300654751,0.31580609,633.3,631.88,0.29048309]
[1739300654955,0.27596559,633.29,631.89,0.29048309]
[1739300655156,0.31582105,633.27,631.88,0.29048309]
[1739300655356,0.27596559,633.26,631.89,0.29048309]
[1739300655557,0.31583601,633.24,631.9,0.29048309]
[1739300655856,0.27596559,633.23,631.91,0.29048309]
[1739300656056,0.31585098,633.21,631.87,1.18596082]
[1739300656259,0.27596681,633.2,631.93,1.18596082]
[1739300656459,0.31586594,633.18,631.94,0.29048431]
[1739300658462,0.31586594,633.18,631.92,0.29048431]
[1739300660757,0.31586594,633.18,631.89,1.18596082]
[1739300660959,0.31586594,633.18,631.9,0.29050808]
[1739300661361,0.31586594,633.18,631.89,1.18596082]
[1739300661562,0.31586594,633.18,631.9,0.29050573]
[1739300663257,0.31586594,633.18,631.71,1.18596082]
[1739300663456,0.27602845,633.17,631.72,0.29056426]
[1739300664865,0.31588091,633.15,631.72,0.29056426]
[1739300665163,0.27602845,633.14,631.72,0.29056426]
[1739300665362,0.31589588,633.12,631.72,0.29056426]
[1739300665563,0.27602845,633.11,631.72,0.29056426]
[1739300665763,0.31591084,633.09,631.66,0.29056426]
[1739300665964,0.27602845,633.08,631.67,0.29056426]
[1739300666170,0.31592582,633.06,631.66,0.29056426]
[1739300666364,0.27602845,633.05,631.67,0.29056426]
[1739300666560,0.31594079,633.03,631.66,0.29056426]
[1739300666764,0.31594079,633.03,631.65,1.18596082]
[1739300666959,0.27603856,633.02,631.66,0.29055664]
[1739300667163,0.31595576,633.0,631.66,0.29055664]
[1739300667960,0.31595576,633.0,631.6,0.89970815]
[1739300668168,0.31595576,633.0,631.6,0.29055664]
[1739300668359,0.31595576,633.0,631.6,0.89943322]
[1739300668565,0.31595576,633.0,631.61,0.89934218]
[1739300668862,0.31595576,633.0,631.62,0.89934218]
[1739300669063,0.31595576,633.0,631.6,0.89934218]
[1739300669262,6.03683113,632.99,631.63,0.60883962]
[1739300669468,6.35279687,632.98,631.64,0.89934218]
[1739300669666,6.35280187,632.97,631.65,0.29050256]
[1739300669866,6.35280686,632.96,631.66,0.29050256]
[1739300670062,6.03683113,632.95,631.67,0.29050256]
[1739300670265,6.03683113,632.94,631.68,0.29050256]
[1739300670562,6.35282183,632.93,631.69,0.29048937]
[1739300670762,6.03683113,632.92,631.7,0.29048937]
[1739300670967,6.03683113,632.91,631.71,0.29048937]
[1739300671166,8.83549818,632.9,631.72,0.29048937]
[1739300671369,6.03683113,632.89,631.73,0.29048937]
[1739300671569,6.03683113,632.88,631.74,0.29048937]
[1739300671763,6.03683113,632.87,631.75,0.29048937]
[1739300671963,2.79866705,632.9,631.76,0.29048937]
[1739300671964,6.03683113,632.86,631.76,0.29048937]
[1739300672268,6.03683113,632.85,631.77,0.29048937]
[1739300672470,6.03683113,632.84,631.78,0.29048937]
[1739300672665,2.10351239,632.84,631.68,0.29048937]
[1739300672862,2.79866705,632.85,631.77,1.18596082]
[1739300673169,2.79866705,632.85,631.78,0.89928183]
[1739300673965,2.79866705,632.85,631.79,0.8997044]
[1739300674170,8.83549818,632.85,631.78,0.8997044]
[1739300674366,6.03683113,632.84,631.79,0.8997044]
[1739300674563,6.03683113,632.84,631.8,0.29048695]
[1739300674768,2.79866705,632.83,631.78,0.8997044]
[1739300674968,8.83549818,632.83,631.79,0.29048695]
[1739300675168,3.93331874,632.82,631.78,0.8997044]
[1739300675369,3.93331874,632.82,631.79,0.29048695]
[1739300675668,3.93331874,632.82,631.77,1.18596082]
[1739300675869,2.79866705,632.83,631.78,0.89974953]
[1739300676070,2.79866705,632.83,631.74,0.89974953]
[1739300676271,2.79866705,632.83,631.79,0.29048014]
[1739300676468,2.79866705,632.83,631.74,0.8998681]
[1739300676668,2.79866705,632.83,631.75,0.29048014]
[1739300676973,8.87421232,632.89,631.76,0.29048014]
[1739300677173,4.24933441,632.88,631.74,0.29048014]
[1739300677375,0.31602066,632.87,631.75,0.29048014]
[1739300677567,0.31602066,632.87,631.73,1.18596082]
[1739300677777,0.31602066,632.87,631.76,0.29050024]
[1739300677974,0.31602066,632.87,631.77,0.29050024]
[1739300678169,0.31602066,632.87,631.74,0.29050024]
[1739300678368,0.31602066,632.87,631.75,0.29050024]
[1739300678578,0.31602066,632.87,631.76,0.29050024]
[1739300678874,0.31602066,632.87,631.77,0.29050024]
[1739300679071,0.31602066,632.87,631.7,0.29050024]
[1739300679476,0.31602066,632.87,631.71,0.29053383]
[1739300679874,3.93331874,632.86,631.72,0.29053383]
[1739300680171,6.07663938,632.85,631.73,0.29053383]
[1739300680377,6.39267502,632.84,631.74,0.29053383]
[1739300680575,6.07663938,632.83,631.61,0.29053383]
[1739300680775,0.31604563,632.82,631.62,0.29053383]
[1739300680971,0.31604563,632.82,631.61,0.29053383]
[1739300681173,0.31604563,632.82,631.62,0.29053383]
[1739300681372,0.31604563,632.82,631.61,0.29053383]
[1739300681671,0.31604563,632.82,631.62,0.29053383]
[1739300681875,0.31604563,632.82,631.61,0.29053383]
[1739300682076,6.35273924,632.81,631.62,0.29053383]
[1739300682277,6.07663938,632.8,631.61,0.29053383]
[1739300682478,6.3927,632.79,631.62,0.29053383]
[1739300682677,6.39270499,632.78,631.61,0.29053383]
[1739300682878,6.07663938,632.77,631.62,0.29061953]
[1739300683175,6.39271498,632.76,631.63,0.29061953]
[1739300683379,6.07663938,632.75,631.61,0.29061953]
[1739300683580,6.39272497,632.74,631.62,0.29061953]
[1739300683776,6.39272997,632.73,631.44,0.9006485]
[1739300683979,6.39273496,632.72,631.45,0.29061953]
[1739300684172,6.39273996,632.71,631.44,0.9006485]
[1739300684376,6.39274495,632.7,631.45,0.29061953]
[1739300684578,6.07663938,632.69,631.44,0.9006485]
[1739300684779,6.07663938,632.68,631.45,0.90074139]
[1739300684979,6.39275994,632.67,631.44,0.90074139]
[1739300685180,6.39276494,632.66,631.44,0.90074139]
[1739300685379,6.39276994,632.65,631.44,0.90074139]
[1739300685579,6.39277493,632.64,631.44,0.90074139]
[1739300685780,2.79866705,632.7,631.45,0.2906443]
[1739300685781,6.39277993,632.63,631.45,0.2906443]
[1739300686074,6.39278493,632.62,631.46,0.2906443]
[1739300686280,6.39278993,632.61,631.3,0.90074139]
[1739300686481,6.39278993,632.61,631.31,0.60744587]
[1739300686482,3.93331874,632.6,631.31,0.60744587]
[1739300686685,3.93331874,632.6,631.32,0.60744085]
[1739300686981,3.93331874,632.6,631.33,0.90074139]
[1739300687176,3.93331874,632.6,631.33,0.2906443]
[1739300687381,2.45947119,632.61,631.33,0.2906443]
[1739300687582,0.31615055,632.61,631.34,0.2906443]
[1739300687783,0.31615055,632.61,631.32,0.31679655]
[1739300688579,0.30497422,632.61,631.32,0.31679655]
[1739300688783,0.30497422,632.61,631.33,0.29064803]
[1739300689981,0.30497422,632.61,631.32,0.31679655]
[1739300690183,0.30497422,632.61,631.33,0.29065255]
[1739300700895,0.27670463,632.6,631.33,0.29065255]
[1739300701093,0.31616054,632.59,631.33,0.29065255]
[1739300704202,0.31616054,632.59,631.34,0.29065255]
[1739300704397,0.31616054,632.59,631.33,0.29065255]
[1739300704598,0.31616054,632.59,631.32,0.31679655]
[1739300704802,0.31616054,632.59,631.33,0.29065255]
[1739300706399,0.27671821,632.58,631.33,0.29065255]
[1739300706705,0.31617554,632.56,631.33,0.29065255]
[1739300706906,0.27671821,632.55,631.33,0.29065255]
[1739300707107,0.31619053,632.53,631.33,0.29065255]
[1739300707305,0.27671821,632.52,631.33,0.29065255]
[1739300707706,0.31620553,632.5,631.33,0.29065255]
[1739300707908,0.27671821,632.49,631.33,0.29065255]
[1739300708308,0.27671821,632.49,631.06,0.89988469]
[1739300708504,0.31622053,632.47,631.07,0.29065255]
[1739300708705,0.31622053,632.47,630.85,0.89988469]
[1739300708902,0.31622053,632.47,630.86,1.21691223]
[1739300709105,0.31622053,632.47,630.87,0.60767507]
[1739300709306,0.31622053,632.47,630.88,0.60767004]
[1739300709506,0.31622053,632.47,630.89,1.21731123]
[1739300709702,0.31622053,632.47,630.9,0.6077837]
[1739300709903,0.31622053,632.47,630.91,0.60777868]
[1739300710107,0.31622053,632.47,630.92,1.21729616]
[1739300710308,0.31622053,632.47,630.93,0.31699237]
[1739300710509,0.31622053,632.47,630.94,0.29077626]
[1739300710808,0.31622053,632.47,630.95,0.60775858]
[1739300711004,0.31622053,632.47,630.96,0.60775356]
[1739300711209,0.31622053,632.47,630.97,0.31697228]
[1739300711408,0.31622053,632.47,630.98,0.29077626]
[1739300711605,0.31622053,632.47,630.99,0.29077626]
[1739300711802,0.31622053,632.47,631.0,0.60773347]
[1739300712007,0.31622053,632.47,631.01,0.60772844]
[1739300712207,0.31622053,632.47,631.02,0.60772342]
[1739300712404,0.31622053,632.47,631.03,0.31694214]
[1739300712605,0.31622053,632.47,631.04,0.29077626]
[1739300712806,0.31622053,632.47,631.05,0.60770835]
[1739300713012,0.31622053,632.47,631.06,0.60770333]
[1739300713211,0.31622053,632.47,631.07,0.29077626]
[1739300713510,0.31622053,632.47,631.08,0.29077626]
[1739300713711,0.31622053,632.47,631.09,0.29077626]
[1739300714006,0.31622053,632.47,631.1,0.60768324]
[1739300714206,0.31622053,632.47,631.11,0.29077626]
[1739300714610,0.31622053,632.47,631.13,0.31689192]
[1739300714811,0.31622053,632.47,631.14,0.29077626]
[1739300715012,0.31622053,632.47,631.15,0.60765814]
[1739300715311,0.31622053,632.47,631.16,1.21717562]
[1739300715506,0.31622053,632.47,631.17,0.29077626]
[1739300715711,0.31622053,632.47,631.18,0.29077626]
[1739300716006,0.31622053,632.47,631.19,0.29077626]
[1739300716211,0.31622053,632.47,631.2,0.60763304]
[1739300716410,0.31622053,632.47,631.21,1.21715052]
[1739300716611,0.31622053,632.47,631.3,1.18596082]
[1739300717009,0.31622053,632.47,631.31,0.90029876]
[1739300717306,0.31622053,632.47,631.32,0.60757281]
[1739300717610,0.31622053,632.47,631.33,0.60756779]
[1739300717811,0.31622053,632.47,631.34,0.29077626]
[1739300720511,0.31622053,632.47,631.35,0.29062056]
[1739300720710,0.31622053,632.47,631.36,0.29062056]
[1739300720910,0.31622053,632.47,631.34,0.29062056]
[1739300721110,0.31622053,632.47,631.35,0.29062056]
[1739300721310,0.31622053,632.47,631.33,0.31679153]
[1739300721311,0.31622053,632.47,631.34,0.29062056]
[1739300722307,0.31622053,632.47,631.33,0.31679153]
[1739300722507,0.31622053,632.47,631.34,0.29067324]
[1739300725916,0.31622053,632.47,631.35,0.29072882]
[1739300726214,0.31622053,632.47,631.34,0.29072882]
[1739300726514,0.31622053,632.47,631.35,0.29072882]
[1739300726709,0.31622053,632.47,631.34,0.29072882]
[1739300726911,0.31622053,632.47,631.36,0.29072882]
[1739300727117,0.31622053,632.47,631.37,0.29072882]
[1739300727317,0.31622053,632.47,631.34,0.29072882]
[1739300729616,0.31622053,632.47,631.35,0.29071767]
[1739300729818,0.31622053,632.47,631.34,0.29071767]
[1739300730019,0.31622053,632.47,631.35,0.29071767]
[1739300730218,0.31622053,632.47,631.34,0.29071767]
[1739300730416,0.31622053,632.47,631.35,0.29071767]
[1739300730616,0.31622053,632.47,631.34,0.29071767]
[1739300730814,0.31622053,632.47,631.35,0.29071767]
[1739300731016,0.31622053,632.47,631.36,0.29071767]
[1739300731418,0.31622053,632.47,631.37,0.29071767]
[1739300731619,0.31622053,632.47,631.34,0.29071767]
[1739300731817,0.31622053,632.47,631.35,0.29071767]
[1739300732013,0.31622053,632.47,631.34,0.29071767]
[1739300732813,0.31622053,632.47,631.33,0.31679153]
[1739300733014,0.31622053,632.47,631.09,1.18596082]
[1739300733218,0.27682145,632.46,631.1,0.29080641]
[1739300733420,0.31622053,632.47,631.1,0.29080641]
[1739300733421,0.31623553,632.44,631.1,0.29080641]
[1739300734819,0.31623553,632.44,631.09,1.18596082]
[1739300735121,0.31623553,632.44,631.1,0.29079518]
[1739300735420,0.31623553,632.44,630.88,0.89889729]
[1739300735615,0.31623553,632.44,630.89,0.60780765]
[1739300735817,0.31623553,632.44,630.9,0.60780262]
[1739300736021,0.31623553,632.44,630.91,0.6077976]
[1739300736219,0.31623553,632.44,630.92,0.60779258]
[1739300736417,0.31623553,632.44,630.93,0.31699237]
[1739300736615,0.31623553,632.44,630.94,0.29079518]
[1739300736819,0.31623553,632.44,630.95,0.31698232]
[1739300737021,0.31623553,632.44,630.96,0.29079518]
[1739300738520,0.31623553,632.44,630.95,0.31698232]
[1739300738722,0.31623553,632.44,630.96,0.29079171]
[1739300744027,0.31623553,632.44,630.95,0.31698232]
[1739300744332,0.27685069,632.43,630.96,0.29083246]
[1739300744534,0.31625053,632.41,630.96,0.29083246]
[1739300744733,0.27685069,632.4,630.96,0.29083246]
[1739300744930,0.31626553,632.38,630.96,0.29083246]
[1739300745129,0.27685069,632.37,630.96,0.29083246]
[1739300745327,0.31628054,632.35,630.96,0.29083246]
[1739300745834,0.31628054,632.35,630.95,0.31698232]
[1739300746036,0.27693268,632.34,630.96,0.29091857]
[1739300746237,0.31629554,632.32,630.96,0.29091857]
[1739300747537,0.27694321,632.31,630.96,0.29091857]
[1739300747731,0.31631055,632.29,630.96,0.29091857]
[1739300749240,0.27695243,632.28,630.96,0.29091857]
[1739300749432,0.31632556,632.26,630.96,0.29091857]
[1739300749635,0.31632556,632.26,630.97,0.29093786]
[1739300749831,0.31632556,632.26,630.98,0.29093786]
[1739300750035,0.31632556,632.26,630.96,0.29093786]
[1739300750236,0.31632556,632.26,630.99,0.29093786]
[1739300750436,0.31632556,632.26,630.95,0.31698232]
[1739300750437,0.31632556,632.26,630.96,0.29092407]
[1739300751433,0.31632556,632.26,630.97,0.29090442]
[1739300751737,0.31632556,632.26,630.98,0.29090442]
[1739300751938,0.31632556,632.26,630.96,0.29090442]
[1739300752137,0.31632556,632.26,630.99,0.29090442]
[1739300752338,0.31632556,632.26,631.0,0.29090442]
[1739300752539,0.31632556,632.26,630.96,0.29090442]
[1739300752738,4.25881676,632.25,630.97,0.29090442]
[1739300752935,4.57515232,632.24,630.96,0.29090442]
[1739300753141,0.31634057,632.23,630.95,0.31698232]
[1739300753440,0.31634057,632.23,630.96,0.29086129]
[1739300760434,0.31634057,632.23,630.95,0.31698232]
[1739300760638,0.31634057,632.23,630.96,0.29084553]
[1739300763740,0.31634057,632.23,630.97,0.2908431]
[1739300763941,0.31634057,632.23,630.96,0.2908431]
[1739300764142,0.31634057,632.23,630.97,0.2908431]
[1739300764437,0.31634057,632.23,630.98,0.2908431]
[1739300764643,0.31634057,632.23,630.96,0.2908431]
[1739300764941,0.31634057,632.23,630.97,0.2908431]
[1739300765142,0.31634057,632.23,630.96,0.2908431]